bitfinex/quotes_ETHUSD_20250803
["timestamp","ask_amount","ask_price","bid_price","bid_amount"]
[1754181435913,0.87798758,3370.4,3367.5,0.4695]
[1754181436244,5.4645,3370.3,3367.5,0.4695]
[1754181436404,3.0,3370.1,3367.4,0.72540183]
[1754181436600,0.52334933,3370.0,3366.9,8.20362992]
[1754181436802,0.4865,3370.0,3367.0,0.4695]
[1754181437115,0.4865,3370.0,3367.1,0.4695]
[1754181437343,0.4865,3370.0,3367.8,3.0]
[1754181437501,0.4865,3370.0,3367.9,1.24594299]
[1754181437697,0.55,3369.9,3368.0,0.4695]
[1754181437931,0.03709418,3369.8,3368.0,0.4695]
[1754181438131,0.4865,3370.0,3368.0,3.4695]
[1754181438330,0.9551,3370.9,3368.7,3.0]
[1754181438533,0.4865,3371.8,3369.3,7.73412992]
[1754181438734,0.4865,3371.8,3369.4,3.4695]
[1754181438999,0.50567328,3371.7,3369.5,0.4695]
[1754181439322,0.50567328,3371.7,3369.6,7.73412992]
[1754181439323,0.4686,3371.7,3369.6,7.73412992]
[1754181439657,0.4686,3372.3,3369.7,0.82841299]
[1754181439800,0.03706778,3372.2,3369.7,0.82841299]
[1754181439997,30.0,3372.0,3368.8,1.07341299]
[1754181440223,3.0,3371.7,3367.9,0.4865]
[1754181440442,3.55,3371.2,3368.0,0.82206299]
[1754181440743,0.55,3371.0,3367.3,0.2258758]
[1754181440911,0.55,3371.0,3367.0,7.73412992]
[1754181440912,3.55,3370.8,3367.0,7.73412992]
[1754181441110,0.55,3370.6,3367.1,4.87320764]
[1754181441345,3.55,3370.4,3367.2,0.4351]
[1754181441526,0.55,3370.2,3367.3,0.96073376]
[1754181441730,3.55,3370.0,3367.1,3.44913376]
[1754181441926,3.55,3369.8,3368.1,0.1488]
[1754181442129,0.1488,3368.7,3368.1,0.1488]
[1754181442342,0.1488,3368.7,3367.2,4.21450657]
[1754181442343,0.1488,3368.7,3367.2,1.21450657]
[1754181442658,0.4623,3369.1,3367.2,1.21450657]
[1754181442941,0.1488,3369.2,3368.6,0.1488]
[1754181443552,0.4623,3369.4,3367.0,0.55]
[1754181443723,0.4623,3369.9,3367.1,3.0]
[1754181443901,0.03684933,3369.8,3367.2,1.1469929]
[1754181444347,1.0123,3369.7,3367.2,0.5969929]
[1754181444520,0.4623,3369.6,3366.9,0.73701049]
[1754181444776,0.4623,3369.6,3366.9,3.0]
[1754181444920,0.4623,3369.8,3367.3,3.0]
[1754181445102,0.55,3369.7,3367.3,3.0]
[1754181445303,0.4623,3369.8,3367.6,3.0]
[1754181445506,0.03709529,3369.7,3367.2,9.74266879]
[1754181445737,0.03709529,3369.7,3367.3,4.82125703]
[1754181446047,0.4623,3369.6,3367.3,4.27125703]
[1754181446206,0.4623,3369.6,3367.5,3.0]
[1754181447239,0.55,3370.2,3367.5,3.0]
[1754181447440,0.4623,3370.1,3367.8,3.55]
[1754181447954,0.4623,3370.1,3367.7,3.51936895]
[1754181448156,0.49939088,3370.1,3367.6,0.9289257]
[1754181448365,0.49939088,3370.1,3367.7,3.0]
[1754181448508,0.4623,3370.1,3367.8,0.89409257]
[1754181449113,0.55,3369.9,3367.8,0.89409257]
[1754181449414,0.9533,3369.8,3367.4,3.0]
[1754181449615,0.99039529,3369.7,3366.5,0.892407]
[1754181449951,0.55,3369.4,3366.5,0.892407]
[1754181450109,0.55,3370.4,3366.5,0.892407]
[1754181450110,0.55,3369.2,3366.5,0.892407]
[1754181450315,0.55,3369.0,3366.0,0.1]
[1754181450642,0.55,3369.0,3366.0,1.07326783]
[1754181450843,0.4623,3368.9,3366.1,5.06]
[1754181451050,0.55,3368.7,3366.0,0.1]
[1754181451373,0.55,3368.5,3366.0,0.86233343]
[1754181451584,0.9533,3368.6,3367.6,0.002]
[1754181451853,1.0123,3368.5,3367.6,0.002]
[1754181452054,0.55,3368.3,3367.6,0.002]
[1754181452460,0.55,3368.1,3367.6,0.002]
[1754181452647,0.55,3368.1,3365.6,5.2484]
[1754181452963,0.9533,3368.0,3365.6,0.9238093]
[1754181453123,0.52811401,3368.0,3365.6,0.9238093]
[1754181453323,0.52811401,3368.0,3366.4,0.1488]
[1754181453324,0.1488,3366.9,3366.4,0.1488]
[1754181454262,0.4623,3367.4,3365.6,0.9238093]
[1754181454457,0.1488,3366.9,3366.4,0.1488]
[1754181454766,0.4623,3367.4,3364.9,7.16519057]
[1754181455056,0.1488,3366.6,3366.1,0.1488]
[1754181455259,0.9533,3366.5,3366.1,0.1488]
[1754181455470,0.9533,3366.4,3364.9,2.84829353]
[1754181455759,0.4623,3366.3,3364.9,2.84829353]
[1754181455922,0.49943275,3366.3,3365.0,0.28482935]
[1754181456127,0.49943275,3366.3,3364.9,2.84829353]
[1754181456128,0.4623,3366.3,3364.9,2.09719057]
[1754181456729,0.55,3366.2,3364.9,2.09719057]
[1754181456957,0.55,3366.2,3364.8,0.75303668]
[1754181456958,0.4623,3366.1,3364.3,0.04299086]
[1754181457180,0.491,3366.4,3364.3,0.04299086]
[1754181457362,0.4623,3366.3,3364.3,0.04299086]
[1754181457885,5.13313386,3366.2,3364.3,0.04299086]
[1754181458186,1.07094339,3366.1,3364.3,0.04299086]
[1754181458331,0.03713606,3366.0,3364.3,0.04299086]
[1754181458775,0.03713716,3365.9,3364.3,0.04299086]
[1754181458977,0.491,3365.8,3363.8,0.07009086]
[1754181459179,0.491,3365.8,3363.9,0.92889695]
[1754181459180,0.4623,3365.7,3363.9,0.92889695]
[1754181459534,0.03713386,3366.2,3363.9,0.92889695]
[1754181459734,0.4623,3366.4,3363.9,0.92889695]
[1754181459951,0.491,3366.3,3364.0,1.83992639]
[1754181460174,0.49943386,3366.2,3364.0,1.83992639]
[1754181460484,0.491,3366.1,3364.0,1.83992639]
[1754181460786,3.06850644,3368.7,3364.0,1.83992639]
[1754181460787,0.1,3369.0,3364.0,1.83992639]
[1754181460987,0.4623,3366.8,3364.4,3.0]
[1754181461281,0.55,3366.6,3364.4,3.0]
[1754181461580,0.4623,3366.5,3364.4,3.0]
[1754181461935,0.4623,3366.5,3364.3,9.74266879]
[1754181462276,0.4623,3366.5,3364.4,3.99266614]
[1754181462870,0.4623,3366.5,3364.5,0.55]
[1754181463067,0.4623,3366.5,3364.6,3.0]
[1754181463239,0.4623,3366.5,3364.4,0.99266614]
[1754181463609,0.52813165,3366.4,3364.4,0.99266614]
[1754181463815,0.4623,3366.3,3363.7,10.70059272]
[1754181464016,0.4623,3366.3,3363.8,3.0]
[1754181464316,0.4623,3366.3,3364.0,0.55]
[1754181464609,0.55,3366.2,3363.9,1.14647146]
[1754181464824,0.4623,3366.1,3364.0,7.79609739]
[1754181464995,0.4623,3366.1,3364.1,3.0]
[1754181465316,0.1488,3365.3,3364.8,0.1488]
[1754181465696,0.4623,3366.1,3364.8,0.1488]
[1754181465901,0.1488,3365.6,3365.0,0.1488]
[1754181466289,0.1488,3365.3,3364.8,0.1488]
[1754181466907,0.9533,3365.8,3364.8,0.1488]
[1754181467085,0.1488,3365.4,3364.8,0.1488]
[1754181467433,0.4623,3366.0,3364.5,3.0]
[1754181467636,0.1488,3365.6,3364.6,0.28806871]
[1754181467793,0.1488,3365.6,3365.1,0.1488]
[1754181468193,0.9533,3365.5,3364.4,7.79609739]
[1754181468439,0.9533,3365.5,3364.5,0.88757071]
[1754181468640,0.1488,3364.5,3363.8,7.79609739]
[1754181468933,0.1488,3364.5,3363.9,0.1488]
[1754181469138,0.1488,3364.5,3364.0,0.79448974]
[1754181469438,0.1488,3364.5,3364.0,8.59058713]
[1754181469644,0.4623,3365.0,3364.0,8.59058713]
[1754181470293,0.5281482,3364.9,3361.4,2.9749276]
[1754181470496,0.1488,3363.5,3362.4,6.13009739]
[1754181470730,0.4623,3363.4,3362.6,0.1488]
[1754181470907,5.103,3364.3,3363.3,7.79609739]
[1754181471129,1.16824482,3364.6,3364.2,7.79609739]
[1754181471443,0.16824482,3364.6,3363.6,8.25149739]
[1754181471599,0.16824482,3364.6,3363.6,0.4464]
[1754181471795,0.1488,3364.1,3363.6,0.1488]
[1754181471989,0.1488,3364.1,3363.0,0.4464]
[1754181471990,0.16424482,3364.6,3363.2,7.94489739]
[1754181472194,0.03715262,3364.5,3362.1,0.4672]
[1754181472446,5.114,3364.6,3363.1,7.79609739]
[1754181472746,4.17705262,3364.5,3363.1,7.79609739]
[1754181473048,0.1488,3363.2,3363.1,7.79609739]
[1754181473224,0.1488,3363.2,3362.9,7.79609739]
[1754181473599,0.1488,3363.2,3362.6,7.94489739]
[1754181474296,0.1488,3363.2,3362.6,0.1488]
[1754181474495,0.4643,3363.5,3362.3,7.79609739]
[1754181474851,0.1488,3362.4,3361.8,8.94489739]
[1754181475221,0.4643,3362.9,3361.1,0.75357434]
[1754181475429,0.4643,3362.9,3361.8,0.1488]
[1754181475430,0.1488,3362.4,3361.8,0.1488]
[1754181475629,0.4643,3362.9,3361.7,7.79609739]
[1754181475830,0.1488,3362.5,3362.0,0.1488]
[1754181476051,5.12,3363.0,3361.5,7.79609739]
[1754181476266,0.9342,3362.9,3361.0,0.85067139]
[1754181476573,5.141,3363.7,3362.7,7.79609739]
[1754181476777,7.145,3364.3,3361.0,0.1]
[1754181476778,1.73950062,3362.8,3361.0,0.1]
[1754181476980,0.9342,3362.8,3361.6,2.06492396]
[1754181477131,7.145,3363.6,3362.1,7.79609739]
[1754181477332,7.145,3363.6,3361.7,0.8993]
[1754181477333,7.145,3364.8,3363.5,7.79609739]
[1754181477658,3.715,3367.2,3361.1,7.145]
[1754181477659,0.4643,3364.7,3363.0,0.4321]
[1754181477971,0.4643,3364.7,3363.0,7.79609739]
[1754181478184,0.9342,3364.7,3362.2,3.0]
[1754181478342,5.78245151,3364.6,3362.2,3.0]
[1754181478542,5.7453,3364.6,3362.8,7.79609739]
[1754181478744,0.4699,3365.4,3363.5,7.79609739]
[1754181478952,0.4643,3365.6,3364.2,7.79609739]
[1754181479332,0.4643,3366.0,3364.2,7.79609739]
[1754181479846,0.4643,3366.0,3364.2,7.35979739]
[1754181480229,0.03713716,3365.9,3363.4,0.893262]
[1754181480433,0.55,3365.7,3363.1,3.0302]
[1754181480730,5.7533,3365.6,3363.1,3.0302]
[1754181480962,0.4643,3365.5,3363.7,7.79609739]
[1754181481279,5.287,3365.8,3364.4,7.79609739]
[1754181481484,0.4643,3366.0,3363.8,3.0]
[1754181481625,0.03713937,3365.7,3363.0,0.0302]
[1754181481829,0.03713937,3365.7,3363.9,7.79609739]
[1754181481830,0.9342,3365.6,3363.9,7.79609739]
[1754181482259,0.4699,3365.6,3363.7,0.0302]
[1754181482541,0.50144158,3365.5,3363.3,3.0]
[1754181482843,0.50144158,3365.5,3360.6,1.47314421]
[1754181482844,0.55,3365.2,3362.0,0.384]
[1754181483043,0.55,3364.8,3361.4,7.79609739]
[1754181483242,0.55,3364.6,3361.4,7.79609739]
[1754181483480,0.97135041,3364.7,3361.1,0.384]
[1754181483481,8.0802,3364.5,3362.1,7.79609739]
[1754181483687,0.9342,3364.5,3362.2,0.0302]
[1754181483833,12.451,3364.7,3362.8,7.79609739]
[1754181484033,12.451,3364.7,3362.0,0.39076645]
[1754181484034,12.451,3364.7,3363.5,7.79609739]
[1754181484234,12.451,3364.7,3363.5,7.82629739]
[1754181484433,7.146,3365.9,3364.2,7.79609739]
[1754181484891,7.146,3365.9,3364.3,3.0302]
[1754181485346,7.146,3365.9,3364.4,0.0302]
[1754181485548,7.146,3365.9,3364.9,7.79609739]
[1754181485769,0.4643,3366.6,3364.9,7.82629739]
[1754181486084,7.146,3367.1,3365.6,7.79609739]
[1754181486289,7.146,3367.1,3365.7,0.384]
[1754181486499,0.1488,3366.7,3366.2,0.1488]
[1754181486704,7.146,3367.1,3366.2,0.1488]
[1754181486863,0.4643,3368.1,3365.9,0.0302]
[1754181487064,0.14454325,3368.0,3366.9,0.1488]
[1754181487292,0.29334325,3368.2,3367.6,0.1488]
[1754181487589,0.29334325,3368.2,3367.0,0.4142]
[1754181487590,0.001,3368.3,3367.9,0.1488]
[1754181487791,0.001,3368.3,3367.5,0.0302]
[1754181487792,0.001,3368.3,3367.5,3.0302]
[1754181488004,0.14458454,3369.2,3367.8,3.0]
[1754181488302,0.149,3370.1,3368.6,3.0]
[1754181488606,0.149,3370.1,3369.1,0.1488]
[1754181488607,0.14565633,3370.1,3369.1,0.1488]
[1754181488746,0.14565633,3370.1,3368.7,3.4142]
[1754181488747,0.001,3370.1,3369.2,0.4142]
[1754181488947,6.8470269,3371.0,3369.5,3.0]
[1754181488948,5.30948296,3371.0,3369.5,3.0]
[1754181489188,5.30948296,3371.0,3370.0,0.148]
[1754181489347,0.4643,3372.3,3370.4,3.0]
[1754181489548,0.148,3372.6,3372.1,0.148]
[1754181489745,10.603666,3372.9,3372.1,0.384]
[1754181490043,10.603666,3372.9,3372.8,0.148]
[1754181490205,0.4643,3374.1,3372.8,0.148]
[1754181490408,0.148,3373.7,3372.8,0.148]
[1754181490551,0.4643,3374.2,3372.2,8.31]
[1754181490945,0.148,3374.5,3374.0,0.148]
[1754181491150,0.148,3374.5,3372.1,9.7522589]
[1754181491151,0.148,3374.7,3374.3,0.148]
[1754181491414,0.148,3375.5,3374.4,0.148]
[1754181491549,0.4643,3376.0,3374.4,0.97416102]
[1754181491753,0.001,3376.5,3374.8,9.7522589]
[1754181491950,0.001,3376.5,3374.9,3.41196102]
[1754181492253,0.001,3376.5,3376.0,0.148]
[1754181492471,0.001,3376.5,3375.4,3.0]
[1754181492803,0.001,3376.5,3375.0,0.0302]
[1754181492963,0.001,3376.5,3374.0,0.3844]
[1754181492964,0.4653,3376.1,3374.0,0.3844]
[1754181493169,0.001,3376.1,3374.3,8.335]
[1754181493364,0.001,3376.1,3375.0,3.0]
[1754181493949,0.001,3376.1,3375.1,0.0302]
[1754181494150,0.001,3376.1,3374.7,3.0]
[1754181494470,8.26265318,3377.8,3376.1,3.55]
[1754181494668,23.0602302,3378.6,3377.1,3.0]
[1754181495004,10.335831,3378.6,3377.3,3.0]
[1754181495232,5.53509198,3378.6,3378.5,3.0]
[1754181495385,0.001,3380.2,3379.1,3.0]
[1754181495386,6.70232719,3379.2,3379.1,3.0]
[1754181495584,12.5770471,3380.3,3379.3,3.0]
[1754181495883,0.03692401,3380.2,3378.5,9.7522589]
[1754181496110,0.4643,3380.2,3378.6,3.02959805]
[1754181496314,0.4643,3380.2,3377.1,3.73228299]
[1754181496315,0.4699,3380.1,3377.1,3.73228299]
[1754181496625,0.4643,3380.0,3378.5,9.7522589]
[1754181497135,0.4699,3379.9,3378.5,9.7522589]
[1754181497716,0.4643,3380.0,3378.5,9.7522589]
[1754181498020,0.4643,3380.0,3378.4,5.697]
[1754181498021,0.55,3379.8,3378.4,0.4699]
[1754181498214,0.55,3379.8,3376.9,2.96126042]
[1754181498215,3.55,3379.6,3376.7,9.7522589]
[1754181498470,0.55,3379.4,3376.7,9.7522589]
[1754181498615,0.001,3380.6,3376.8,0.02961383]
[1754181498616,0.55,3379.2,3376.8,0.02961383]
[1754181498962,0.55,3379.0,3376.9,0.3844]
[1754181499115,0.55,3378.8,3376.7,9.97178291]
[1754181499455,0.55,3378.6,3375.6,9.7522589]
[1754181499623,0.55,3378.4,3376.1,0.890042]
[1754181499953,0.55,3378.2,3375.6,9.96957989]
[1754181500252,0.55,3378.2,3375.8,0.890127]
[1754181500253,0.55,3378.0,3375.8,0.890127]
[1754181500452,0.55,3377.8,3375.6,0.21732099]
[1754181500749,7.128,3378.3,3376.8,3.0]
[1754181500950,7.128,3378.3,3376.4,9.7522589]
[1754181500951,0.55,3378.2,3376.5,3.0]
[1754181501163,7.128,3378.3,3376.5,3.0]
[1754181501164,7.125,3379.5,3376.6,0.02961558]
[1754181501457,7.125,3379.5,3377.4,3.0]
[1754181501614,0.60334695,3382.1,3377.6,2.96068214]
[1754181501615,0.4643,3380.1,3377.6,2.96068214]
[1754181501818,7.126,3380.4,3378.2,9.7522589]
[1754181502040,7.126,3380.4,3379.1,2.95934537]
[1754181502243,7.126,3380.4,3378.5,3.0]
[1754181502416,7.126,3380.4,3378.2,18.80281271]
[1754181502417,7.126,3380.4,3379.5,3.0]
[1754181502618,0.001,3380.4,3380.3,0.148]
[1754181502818,0.001,3380.4,3379.5,0.22229699]
[1754181502819,0.5864,3380.4,3379.5,0.22229699]
[1754181503116,0.148,3380.2,3378.2,15.67986663]
[1754181503335,0.001,3380.4,3379.7,0.148]
[1754181503548,0.001,3380.4,3380.3,2.9583173]
[1754181503747,0.477,3382.5,3380.3,1.43]
[1754181503948,0.477,3382.5,3379.1,5.724]
[1754181504216,0.4374,3382.1,3379.6,9.7522589]
[1754181504420,0.477,3381.9,3379.7,0.02958842]
[1754181504666,0.9144,3382.6,3380.5,9.7522589]
[1754181504819,0.11438416,3381.1,3380.5,9.7522589]
[1754181505184,0.477,3381.0,3380.5,3.0]
[1754181505346,0.11438416,3381.1,3379.2,5.732]
[1754181505347,0.9144,3380.9,3379.2,5.732]
[1754181505689,7.121,3382.5,3380.7,9.7522589]
[1754181505850,7.121,3382.5,3380.8,3.0]
[1754181506050,7.121,3382.5,3380.1,5.738]
[1754181506051,0.03692401,3382.4,3380.1,5.738]
[1754181506398,7.118,3383.5,3380.6,0.888782]
[1754181506540,0.4374,3383.1,3380.8,3.0]
[1754181506741,0.4374,3383.1,3380.9,3.0]
[1754181506941,0.4374,3383.1,3380.8,2.95782156]
[1754181506942,0.4374,3383.1,3381.4,3.0]
[1754181507243,0.4374,3383.1,3380.8,3.0]
[1754181507752,0.4374,3383.1,3380.9,0.0857]
[1754181507967,0.55,3382.8,3380.8,3.0]
[1754181508281,0.55,3382.6,3380.6,0.888782]
[1754181508489,0.55,3382.6,3379.9,5.732]
[1754181508695,0.55,3382.6,3379.8,12.71092857]
[1754181508696,0.55,3382.4,3380.0,0.61463363]
[1754181508908,0.55,3382.2,3379.8,9.7522589]
[1754181509113,0.55,3382.0,3379.8,9.7522589]
[1754181509277,30.0,3381.8,3378.9,0.79059705]
[1754181509485,30.0,3381.8,3377.0,3.70450936]
[1754181509486,3.55,3380.9,3377.2,2.11686249]
[1754181509680,0.55,3380.5,3376.8,2.11686249]
[1754181510016,33.55,3379.9,3379.8,0.888961]
[1754181510314,8.0294,3379.9,3376.7,9.7522589]
[1754181510484,0.55,3379.7,3376.7,10.1905589]
[1754181510658,0.55,3379.5,3376.7,0.4383]
[1754181510856,0.55,3379.3,3376.5,2.11686249]
[1754181511090,8.897,3379.8,3376.2,2.11686249]
[1754181511091,0.55,3379.1,3376.2,2.11686249]
[1754181511310,0.55,3379.1,3376.5,0.4383]
[1754181511514,0.55,3378.9,3376.5,0.4383]
[1754181511658,0.55,3378.7,3376.5,0.4383]
[1754181512063,0.55,3378.5,3376.5,0.4383]
[1754181512364,0.55,3378.3,3375.9,2.55516249]
[1754181512563,0.9144,3378.2,3378.0,2.11686249]
[1754181512861,6.65085017,3378.3,3377.0,3.70450936]
[1754181513520,30.0,3380.6,3377.1,0.4383]
[1754181513667,13.009,3380.5,3377.1,3.9284112]
[1754181513863,13.012,3380.4,3377.4,6.70450936]
[1754181514107,5.896,3380.3,3377.8,3.0]
[1754181514412,5.896,3380.2,3378.5,3.0]
[1754181514594,0.148,3379.4,3378.9,0.148]
[1754181514793,0.148,3379.4,3378.5,3.0]
[1754181514794,6.8104,3380.2,3378.5,3.70450936]
[1754181515000,0.148,3380.0,3379.4,0.148]
[1754181515182,0.148,3380.7,3380.1,0.148]
[1754181515562,0.148,3380.7,3380.1,0.5863]
[1754181515763,0.148,3380.7,3380.1,0.148]
[1754181516008,3.216,3381.5,3380.6,0.148]
[1754181516218,0.001,3383.0,3381.4,0.148]
[1754181516419,5.895,3382.8,3380.8,0.02957879]
[1754181516577,0.001,3383.0,3381.2,3.55]
[1754181517011,0.001,3383.0,3381.4,0.55]
[1754181517221,0.001,3383.0,3381.3,0.8988]
[1754181518021,5.884,3382.9,3381.3,0.8988]
[1754181518324,0.001,3383.0,3380.7,3.0]
[1754181518325,5.884,3383.0,3381.4,0.4605]
[1754181518617,0.001,3383.0,3381.3,0.4383]
[1754181518816,0.001,3382.8,3381.3,0.4383]
[1754181519031,0.001,3382.8,3381.3,0.46787442]
[1754181519327,0.001,3382.8,3381.6,0.55]
[1754181519631,0.001,3382.8,3381.9,0.55]
[1754181519771,0.001,3382.8,3382.1,0.55]
[1754181519974,0.001,3382.8,3382.0,0.55]
[1754181520200,0.001,3382.8,3382.1,0.92836742]
[1754181520401,0.001,3382.8,3382.2,0.55]
[1754181520655,0.001,3382.8,3382.2,0.02956655]
[1754181520805,0.001,3382.8,3379.3,3.70450936]
[1754181520806,0.55,3382.3,3379.3,3.70450936]
[1754181521004,3.55,3381.9,3379.3,3.70450936]
[1754181521231,0.55,3381.7,3379.3,3.70450936]
[1754181521463,6.33996655,3381.6,3379.4,4.31954988]
[1754181521604,0.55,3381.5,3379.5,0.61504052]
[1754181521805,3.55,3381.3,3380.2,2.56254458]
[1754181522001,0.55,3381.1,3380.3,0.61504052]
[1754181522250,0.55,3380.9,3380.4,0.61504052]
[1754181522452,0.55,3380.7,3380.5,0.61504052]
[1754181522610,3.0,3380.5,3379.7,2.56254458]
[1754181522808,0.55,3380.4,3380.2,2.05345]
[1754181523012,0.8874,3380.4,3380.3,0.61603493]
[1754181523212,3.0,3380.5,3380.3,0.61603493]
[1754181523560,3.0,3380.5,3379.5,2.27082951]
[1754181523861,3.0,3380.5,3379.1,3.70450936]
[1754181524072,3.0,3380.6,3379.2,0.8988]
[1754181524412,3.0,3380.6,3379.2,0.4605]
[1754181524641,5.96,3381.5,3379.4,0.55]
[1754181524948,13.073,3381.9,3380.1,3.55]
[1754181525136,7.112,3381.9,3380.3,3.55]
[1754181525320,7.112,3381.9,3380.5,0.55]
[1754181525527,5.958,3382.8,3380.6,0.92838054]
[1754181525842,5.958,3382.8,3380.8,0.55]
[1754181526039,5.958,3382.8,3380.9,0.8988]
[1754181526240,5.958,3382.8,3380.8,0.57957879]
[1754181526241,0.148,3382.4,3381.9,0.148]
[1754181526758,0.001,3382.8,3380.9,3.0]
[1754181526912,0.001,3382.8,3380.7,3.0]
[1754181527315,0.001,3382.8,3380.8,5.29351588]
[1754181527718,0.001,3382.8,3380.9,3.0]
[1754181528061,0.001,3383.0,3380.9,3.0]
[1754181528264,0.001,3383.0,3381.7,3.0]
[1754181528629,0.001,3383.0,3381.8,0.8988]
[1754181529356,0.001,3383.0,3381.5,5.29351588]
[1754181529862,0.001,3383.0,3381.6,5.29351588]
[1754181530517,0.001,3383.0,3382.2,5.29351588]
[1754181530718,7.113,3383.2,3382.2,5.29351588]
[1754181530920,7.113,3383.2,3382.3,0.02956568]
[1754181531226,7.113,3383.2,3382.2,5.29351588]
[1754181531456,7.113,3383.2,3382.5,5.29351588]
[1754181532034,7.113,3383.2,3382.3,0.8988]
[1754181533134,0.001,3384.0,3382.4,1.0139648]
[1754181533338,0.5117,3385.4,3382.6,0.55]
[1754181533532,4.742,3385.5,3383.3,2.95564841]
[1754181533737,1.0117,3385.9,3383.4,0.02955606]
[1754181533738,0.888606,3385.2,3383.4,0.02955606]
[1754181533980,0.5,3385.9,3383.9,0.55]
[1754181534147,6.415,3385.9,3383.9,0.0295517]
[1754181534350,6.415,3385.9,3384.0,0.9844]
[1754181534562,0.5,3385.9,3384.1,3.0]
[1754181534778,0.5,3385.9,3384.4,3.0]
[1754181535081,6.411,3385.9,3384.2,3.9844]
[1754181535280,0.5,3385.9,3384.4,0.9844]
[1754181535591,0.5,3385.9,3384.4,6.96868081]
[1754181535740,0.5,3385.9,3384.4,3.9844]
[1754181536435,0.02956655,3385.8,3384.4,0.9844]
[1754181536635,0.5,3385.9,3384.4,0.9844]
[1754181536636,0.5,3385.9,3384.8,2.9543843]
[1754181536853,0.5,3385.9,3384.8,7.51832814]
[1754181537142,0.5,3385.9,3384.8,4.6824]
[1754181537485,0.5,3385.9,3384.9,6.50426767]
[1754181537638,0.5,3385.9,3384.9,0.9844]
[1754181537832,0.5,3385.9,3385.1,0.55]
[1754181538037,0.5,3385.9,3385.2,0.3252239]
[1754181538266,0.5,3385.9,3385.1,0.9844]
[1754181538540,0.5,3385.9,3385.2,0.3252239]
[1754181538755,0.5,3385.9,3385.2,7.26365911]
[1754181538966,0.001,3386.6,3385.2,7.26365911]
[1754181538967,0.001,3386.6,3385.2,11.4166239]
[1754181539164,7.107,3389.7,3385.2,11.4166239]
[1754181539165,0.5117,3388.9,3385.8,3.55]
[1754181539367,0.5117,3388.9,3386.1,0.55]
[1754181539573,0.5117,3388.9,3386.6,0.55]
[1754181539774,0.5117,3388.9,3386.8,0.55]
[1754181540094,0.4639,3389.0,3387.0,0.55]
[1754181540280,0.03056655,3388.6,3386.8,0.9844]
[1754181540493,0.001,3388.6,3387.0,3.55]
[1754181540795,0.001,3388.6,3387.2,3.55]
[1754181540957,0.001,3388.6,3387.6,0.55]
[1754181541157,0.001,3388.6,3387.8,0.55]
[1754181541466,0.001,3388.6,3387.9,0.3554677]
[1754181541682,0.001,3388.6,3387.2,0.9844]
[1754181541853,0.001,3388.6,3386.0,2.95333531]
[1754181541854,0.551,3388.6,3386.6,0.5211]
[1754181542052,0.55,3388.4,3386.6,0.5211]
[1754181542412,0.55,3388.4,3385.3,7.105]
[1754181542413,0.55,3388.2,3385.3,7.5683]
[1754181542550,0.001,3388.6,3385.3,7.5683]
[1754181542551,0.55,3388.0,3386.0,0.5211]
[1754181542749,0.9746,3387.9,3386.1,0.5506325]
[1754181542957,0.001,3388.6,3386.6,2.95280881]
[1754181543159,0.001,3388.6,3386.7,3.02952726]
[1754181543396,0.001,3388.6,3386.8,0.55]
[1754181543602,0.001,3388.6,3386.9,0.02952552]
[1754181543766,0.001,3388.6,3387.4,2.95207464]
[1754181543966,0.001,3388.6,3387.3,3.55]
[1754181543967,0.001,3388.6,3387.5,0.57952029]
[1754181544208,0.001,3388.6,3387.5,0.55]
[1754181544855,0.001,3388.6,3387.6,0.9844]
[1754181545268,0.001,3388.6,3388.1,3.0]
[1754181545467,0.001,3388.6,3388.2,0.02951419]
[1754181545754,0.001,3388.6,3388.1,0.9844]
[1754181545968,0.001,3388.6,3388.2,3.02951419]
[1754181546156,0.001,3388.6,3388.2,0.9844]
[1754181546496,0.001,3388.6,3388.3,0.9844]
[1754181546999,0.001,3388.6,3388.4,0.5211]
[1754181547317,0.001,3388.6,3388.5,0.02951158]
[1754181547496,0.001,3388.6,3388.5,0.17671158]
[1754181547820,0.001,3388.6,3388.5,0.1472]
[1754181549201,0.001,3388.6,3388.1,0.21983641]
[1754181549488,0.001,3388.6,3388.2,0.02951419]
[1754181549684,0.001,3388.6,3387.8,5.993]
[1754181550007,0.001,3388.6,3387.9,0.0295168]
[1754181550255,0.001,3388.6,3387.8,3.5211]
[1754181550517,0.001,3388.6,3387.9,0.0295168]
[1754181550882,0.001,3388.6,3387.9,0.26881488]
[1754181551079,0.001,3388.6,3388.4,3.0]
[1754181551291,0.001,3388.6,3388.5,6.24948478]
[1754181551517,0.001,3388.6,3388.5,6.2199732]
[1754181551835,0.001,3389.0,3388.9,3.0]
[1754181551987,0.001,3389.0,3388.9,6.24913296]
[1754181552187,0.001,3389.0,3388.9,6.97522487]
[1754181552400,0.001,3389.0,3388.9,4.02441488]
[1754181552601,0.001,3389.0,3388.9,3.81942297]
[1754181552788,0.001,3389.0,3388.9,3.78991488]
[1754181552999,0.001,3389.0,3388.9,6.74072487]
[1754181553223,0.001,3389.0,3388.9,7.52522487]
[1754181553823,0.001,3390.5,3389.3,3.55]